bitfinex-derivatives/quotes_BTCF0:USTF0_20260315
["timestamp","ask_amount","ask_price","bid_price","bid_amount"]
[1773549011871,0.16849223,71593.0,71573.0,0.0014]
[1773549012068,0.041893,71599.0,71580.0,0.08783645]
[1773549012273,0.16849223,71602.0,71584.0,0.041901]
[1773549012274,0.041894,71598.0,71584.0,0.041901]
[1773549012671,0.041894,71598.0,71586.0,0.041901]
[1773549013175,0.16849223,71602.0,71581.0,0.1673451]
[1773549013469,0.08783645,71620.0,71591.0,0.041898]
[1773549013470,0.041891,71604.0,71591.0,0.041898]
[1773549013671,0.041891,71604.0,71592.0,0.0014]
[1773549014276,0.21038323,71604.0,71592.0,0.0014]
[1773549020681,0.041891,71603.0,71592.0,0.0014]
[1773549021280,0.16849223,71609.0,71589.0,0.041899]
[1773549021478,0.16849223,71600.0,71590.0,0.0014]
[1773549021782,0.16849223,71600.0,71591.0,0.0014]
[1773549021985,0.16849223,71600.0,71592.0,0.0014]
[1773549029492,0.21038523,71600.0,71592.0,0.0014]
[1773549032592,0.16849223,71600.0,71592.0,0.0014]
[1773549039101,0.17187836,71615.0,71599.0,0.041893]
[1773549039394,0.17187836,71615.0,71593.0,0.17573396]
[1773549040997,0.041887,71610.0,71596.0,0.041894]
[1773549041200,0.041887,71610.0,71597.0,0.041894]
[1773549042295,0.041887,71610.0,71598.0,0.0014]
[1773549047290,0.17187836,71615.0,71599.0,0.041893]
[1773549047495,0.041887,71610.0,71600.0,0.0014]
[1773549047703,0.041887,71610.0,71601.0,0.0014]
[1773549048700,0.041886,71613.0,71601.0,0.0014]
[1773549048899,0.21376236,71615.0,71601.0,0.0014]
[1773549049300,0.21376236,71615.0,71601.0,0.043292]
[1773549049501,0.041884,71615.0,71601.0,0.043292]
[1773549049901,0.041884,71615.0,71601.0,0.0014]
[1773549051105,0.041884,71615.0,71603.0,0.041891]
[1773549051308,0.19851458,71618.0,71601.0,0.0014]
[1773549051702,0.15663258,71618.0,71601.0,0.0014]
[1773549051903,0.15867621,71623.0,71609.0,0.041887]
[1773549052110,0.041881,71621.0,71610.0,0.0014]
[1773549052409,0.041881,71621.0,71611.0,0.0014]
[1773549053410,0.20055721,71621.0,71611.0,0.0014]
[1773549055007,0.041881,71620.0,71611.0,0.0014]
[1773549061609,0.20055721,71620.0,71611.0,0.0014]
[1773549069424,0.041881,71620.0,71611.0,0.0014]
[1773549069620,0.15867621,71611.0,71590.0,0.16585369]
[1773549069822,0.15867621,71603.0,71591.0,0.0014]
[1773549070025,0.15867621,71603.0,71580.0,0.16585369]
[1773549070026,0.15867621,71602.0,71580.0,0.16585369]
[1773549070227,0.15867621,71602.0,71581.0,0.0014]
[1773549070530,0.15867621,71602.0,71578.0,0.16585369]
[1773549070730,0.15867621,71602.0,71579.0,0.0014]
[1773549070930,0.15867621,71602.0,71590.0,0.041898]
[1773549071231,0.15867621,71602.0,71591.0,0.0014]
[1773549071623,0.15867621,71599.0,71592.0,0.0014]
[1773549071830,0.15867621,71599.0,71593.0,0.0014]
[1773549072029,0.15867621,71599.0,71577.0,0.15653717]
[1773549072030,0.15867621,71599.0,71594.0,0.0014]
[1773549072231,0.15867621,71598.0,71595.0,0.0014]
[1773549077538,0.15867621,71598.0,71571.0,0.15653717]
[1773549077740,0.15867621,71593.0,71572.0,0.0014]
[1773549078132,0.15867621,71593.0,71573.0,0.0014]
[1773549078331,0.15867621,71593.0,71582.0,0.041903]
[1773549078532,0.15867621,71593.0,71583.0,0.0014]
[1773549078838,0.15867621,71593.0,71570.0,0.08784443]
[1773549079040,0.20057321,71593.0,71579.0,0.041905]
[1773549079234,0.15867621,71584.0,71572.0,0.043309]
[1773549079440,0.15867621,71584.0,71573.0,0.0014]
[1773549081237,0.15867621,71584.0,71573.0,0.0024]
[1773549082142,0.15867621,71584.0,71573.0,0.0034]
[1773549082554,0.15867621,71584.0,71573.0,0.0024]
[1773549082734,0.15867621,71584.0,71573.0,0.0014]
[1773549082934,0.15867621,71584.0,71573.0,0.0024]
[1773549083742,0.15867621,71584.0,71573.0,0.0014]
[1773549084644,0.16342746,71577.0,71574.0,0.0014]
[1773549085146,0.16342746,71577.0,71552.0,0.15808977]
[1773549085147,0.16342746,71577.0,71572.0,0.0014]
[1773549089050,0.16342746,71577.0,71566.0,0.041912]
[1773549089251,0.16342746,71577.0,71569.0,0.0014]
[1773549094959,0.20533446,71576.0,71569.0,0.0014]
[1773549095957,0.20533446,71576.0,71570.0,0.0014]
[1773549096353,0.20533446,71576.0,71571.0,0.0014]
[1773549096556,0.16342746,71575.0,71571.0,0.0014]
[1773549096756,0.20533546,71575.0,71555.0,0.15808977]
[1773549096954,0.16342746,71575.0,71569.0,0.0014]
[1773549097157,0.20533546,71575.0,71570.0,0.0014]
[1773549097354,0.16342746,71574.0,71569.0,0.0014]
[1773549097661,0.16342746,71574.0,71570.0,0.0014]
[1773549098456,0.16342746,71574.0,71569.0,0.001]
[1773549098655,0.16342746,71574.0,71570.0,0.0014]
[1773549098958,0.16342746,71570.0,71559.0,0.041916]
[1773549099161,0.16342746,71570.0,71569.0,0.00010965]
[1773549099665,0.16342746,71570.0,71568.0,0.0014]
[1773549099962,0.16342746,71570.0,71567.0,0.0014]
[1773549100159,0.16342746,71570.0,71558.0,0.041917]
[1773549100354,0.16342746,71570.0,71559.0,0.0014]
[1773549100755,0.16342746,71570.0,71558.0,0.041917]
[1773549100955,0.20533846,71570.0,71559.0,0.0014]
[1773549101161,0.16342746,71569.0,71559.0,0.0014]
[1773549101860,0.16342746,71569.0,71560.0,0.0014]
[1773549102060,0.16342746,71579.0,71550.0,0.08790597]
[1773549102256,0.08930597,71580.0,71550.0,0.08790597]
[1773549102257,0.16342746,71567.0,71551.0,0.0014]
[1773549102450,0.16342746,71567.0,71552.0,0.0014]
[1773549102649,0.16342746,71568.0,71553.0,0.0014]
[1773549102864,0.04191,71571.0,71558.0,0.12982297]
[1773549103165,0.16342746,71569.0,71559.0,0.0014]
[1773549103367,0.041911,71570.0,71560.0,0.0014]
[1773549103664,0.12723467,71574.0,71561.0,0.0014]
[1773549103862,0.12723467,71574.0,71562.0,0.0014]
[1773549104962,0.041911,71570.0,71562.0,0.0014]
[1773549105355,0.12723467,71574.0,71562.0,0.0014]
[1773549105356,0.041911,71569.0,71562.0,0.0014]
[1773549106867,0.16342746,71568.0,71561.0,0.0014]
[1773549107059,0.041911,71569.0,71561.0,0.0014]
[1773549109769,0.20533846,71569.0,71561.0,0.0014]
[1773549113170,0.16768225,71586.0,71561.0,0.0014]
[1773549113470,0.16768225,71586.0,71571.0,0.041909]
[1773549113671,0.16768225,71586.0,71572.0,0.0014]
[1773549114263,0.16868225,71586.0,71572.0,0.0014]
[1773549115063,0.001,71586.0,71572.0,0.0014]
[1773549115576,0.16868225,71586.0,71572.0,0.0014]
[1773549115763,0.16768225,71586.0,71572.0,0.0014]
[1773549115963,0.041904,71582.0,71572.0,0.0014]
[1773549118675,0.16768225,71586.0,71572.0,0.0014]
[1773549119078,0.16768225,71586.0,71574.0,0.041907]
[1773549119370,0.16768225,71586.0,71572.0,0.043309]
[1773549120077,0.20958325,71586.0,71573.0,0.041908]
[1773549122178,0.20958325,71586.0,71574.0,0.041908]
[1773549123079,0.16768225,71586.0,71574.0,0.041908]
[1773549128279,0.20958325,71586.0,71575.0,0.0014]
[1773549128581,0.1302883,71594.0,71560.0,0.08790597]
[1773549128582,0.16768225,71584.0,71576.0,0.0014]
[1773549128782,0.16768225,71584.0,71577.0,0.0014]
[1773549130581,0.20958225,71587.0,71577.0,0.0014]
[1773549133091,0.16768225,71592.0,71577.0,0.0014]
[1773549133286,0.041897,71593.0,71580.0,0.12980997]
[1773549133690,0.041897,71593.0,71580.0,0.041904]
[1773549140190,0.041897,71593.0,71581.0,0.041904]
[1773549142091,0.041896,71595.0,71578.0,0.15546955]
[1773549142889,0.041896,71594.0,71581.0,0.041903]
[1773549145587,0.0014,71602.0,71577.0,0.0014]
[1773549145588,0.15891961,71601.0,71582.0,0.041903]
[1773549145788,0.15891961,71601.0,71580.0,0.08790597]
[1773549145789,0.041895,71596.0,71583.0,0.041902]
[1773549145995,0.041894,71598.0,71585.0,0.041901]
[1773549146298,0.041892,71601.0,71584.0,0.15869896]
[1773549146495,0.041893,71600.0,71587.0,0.0419]
[1773549148200,0.0014,71607.0,71587.0,0.0419]
[1773549148399,0.15891961,71606.0,71587.0,0.0419]
[1773549149100,0.041893,71600.0,71587.0,0.0419]
[1773549149892,0.15891961,71606.0,71591.0,0.041898]
[1773549150196,0.041892,71602.0,71592.0,0.0014]
[1773549150389,0.041892,71602.0,71593.0,0.0014]
[1773549151301,0.041892,71601.0,71593.0,0.0014]
[1773549154501,0.041891,71603.0,71593.0,0.0014]
[1773549155705,0.041892,71602.0,71593.0,0.0014]
[1773549156614,0.041893,71601.0,71593.0,0.0014]
[1773549156809,0.041893,71600.0,71594.0,0.0014]
[1773549158012,0.041892,71602.0,71594.0,0.0014]
[1773549158210,0.20081161,71602.0,71594.0,0.0014]
[1773549159713,0.041891,71604.0,71594.0,0.0014]
[1773549159913,0.041891,71603.0,71594.0,0.0014]
[1773549162302,0.15891961,71625.0,71594.0,0.0014]
[1773549162515,0.15891961,71620.0,71594.0,0.15869896]
[1773549162707,0.15891961,71618.0,71594.0,0.15869896]
[1773549163018,0.16031961,71618.0,71594.0,0.15869896]
[1773549163313,0.041886,71612.0,71594.0,0.15869896]
[1773549163616,0.041886,71611.0,71597.0,0.041894]
[1773549166021,0.041886,71611.0,71594.0,0.15869896]
[1773549166022,0.04188,71622.0,71608.0,0.041888]
[1773549166203,0.041881,71621.0,71609.0,0.0014]
[1773549166406,0.041881,71620.0,71609.0,0.0014]
[1773549169721,0.00069802,71631.0,71610.0,0.24513244]
[1773549170019,0.00069802,71631.0,71620.0,0.08783348]
[1773549170020,0.041876,71630.0,71620.0,0.08783348]
[1773549170213,0.041876,71630.0,71621.0,0.0014]
[1773549172512,0.00069802,71631.0,71621.0,0.0014]
[1773549173015,0.04257302,71631.0,71621.0,0.0014]
[1773549175730,0.041875,71630.0,71621.0,0.0014]
[1773549176525,0.16766673,71625.0,71596.0,0.1583775]
[1773549176709,0.20954573,71623.0,71600.0,0.24621098]
[1773549176907,0.16766673,71623.0,71601.0,0.1597775]
[1773549177123,0.041878,71625.0,71601.0,0.1597775]
[1773549177320,0.041878,71625.0,71610.0,0.08783348]
[1773549177523,0.041878,71625.0,71611.0,0.0014]
[1773549178027,0.041878,71625.0,71612.0,0.041885]
[1773549178222,0.16766673,71627.0,71611.0,0.0014]
[1773549178428,0.16766673,71621.0,71612.0,0.0014]
[1773549178627,0.16766673,71621.0,71613.0,0.0014]
[1773549178924,0.20954773,71621.0,71614.0,0.0014]
[1773549179125,0.041881,71621.0,71614.0,0.0014]
[1773549179916,0.16766673,71625.0,71614.0,0.0014]
[1773549179917,0.041879,71623.0,71614.0,0.0014]
[1773549181123,0.00069802,71631.0,71617.0,0.1583775]
[1773549181424,0.04257302,71631.0,71617.0,0.1583775]
[1773549181613,0.04257302,71631.0,71619.0,0.041881]
[1773549182018,0.04257302,71631.0,71617.0,0.2002595]
[1773549182230,0.04257302,71631.0,71618.0,0.1583775]
[1773549182429,0.041872,71636.0,71621.0,0.1583775]
[1773549183523,0.041872,71636.0,71622.0,0.0014]
[1773549184121,0.041872,71636.0,71623.0,0.041879]
[1773549184424,0.041873,71635.0,71622.0,0.0014]
[1773549186235,0.041873,71635.0,71622.0,0.043279]
[1773549187931,0.16766673,71653.0,71623.0,0.1583775]
[1773549188233,0.16766673,71649.0,71623.0,0.1583775]
[1773549188531,0.16906673,71649.0,71623.0,0.1583775]
[1773549188923,0.041869,71641.0,71623.0,0.1583775]
[1773549189126,0.04187,71640.0,71627.0,0.041877]
[1773549192335,0.041877,71627.0,71621.0,0.0014]
[1773549192633,0.20954273,71629.0,71622.0,0.0014]
[1773549192834,0.041877,71628.0,71621.0,0.0014]
[1773549193329,0.041877,71627.0,71606.0,0.1583775]
[1773549193639,0.041877,71627.0,71608.0,0.1583775]
[1773549194126,0.041877,71627.0,71609.0,0.0014]
[1773549194322,0.041877,71627.0,71608.0,0.1583775]
[1773549194525,0.041877,71627.0,71609.0,0.0014]
[1773549194723,0.04188,71621.0,71601.0,0.1583775]
[1773549195027,0.041881,71620.0,71602.0,0.1583775]
[1773549195228,0.20954673,71622.0,71609.0,0.041887]
[1773549195427,0.20954673,71622.0,71610.0,0.0014]
[1773549195630,0.20954673,71622.0,71611.0,0.0014]
[1773549199639,0.041881,71620.0,71611.0,0.0014]
[1773549199935,0.16766673,71622.0,71611.0,0.0014]
[1773549199936,0.20954673,71622.0,71611.0,0.0014]
[1773549204846,0.041879,71624.0,71611.0,0.043286]
[1773549209653,0.04188,71623.0,71611.0,0.043286]
[1773549210047,0.16388019,71628.0,71611.0,0.0014]
[1773549210253,0.16388019,71620.0,71611.0,0.0014]
[1773549210548,0.041881,71621.0,71611.0,0.0014]
[1773549211850,0.04188,71623.0,71611.0,0.0014]
[1773549216547,0.04188,71623.0,71611.0,0.043286]
[1773549216750,0.041878,71626.0,71612.0,0.041885]
[1773549217253,0.041878,71625.0,71612.0,0.041885]
[1773549217752,0.041879,71624.0,71612.0,0.041885]
[1773549221751,0.04188,71623.0,71611.0,0.0014]
[1773549225156,0.04188,71623.0,71610.0,0.041887]
[1773549225355,0.04188,71623.0,71611.0,0.0014]
[1773549227064,0.08778429,71630.0,71602.0,0.16605098]
[1773549227065,0.16388019,71629.0,71602.0,0.16605098]
[1773549227244,0.16388019,71619.0,71603.0,0.0014]
[1773549227851,0.16388019,71619.0,71609.0,0.041887]
[1773549228057,0.16388019,71619.0,71610.0,0.0014]
[1773549228762,0.16388019,71619.0,71611.0,0.0014]
[1773549234265,0.16388019,71619.0,71607.0,0.041888]
[1773549234469,0.16388019,71619.0,71608.0,0.0014]
[1773549234762,0.16388019,71619.0,71607.0,0.041888]
[1773549234969,0.20576219,71619.0,71608.0,0.0014]
[1773549235371,0.20576219,71619.0,71609.0,0.0014]
[1773549235964,0.20576219,71619.0,71610.0,0.0014]
[1773549236372,0.20576219,71619.0,71607.0,0.041888]
[1773549236564,0.041883,71617.0,71590.0,0.25383527]
[1773549236765,0.1472787,71616.0,71604.0,0.04189]
[1773549237273,0.1472787,71616.0,71605.0,0.0014]
[1773549237662,0.1472787,71616.0,71606.0,0.0014]
[1773549238172,0.1472787,71616.0,71607.0,0.0014]
[1773549238674,0.1472787,71616.0,71608.0,0.0014]
[1773549239070,0.1472787,71616.0,71604.0,0.04189]
[1773549239368,0.1472787,71616.0,71605.0,0.0014]
[1773549239572,0.1472787,71616.0,71604.0,0.04189]
[1773549239767,0.1472787,71616.0,71605.0,0.0014]
[1773549240167,0.1472787,71616.0,71606.0,0.0014]
[1773549240576,0.1472787,71616.0,71605.0,0.041889]
[1773549240773,0.1472787,71616.0,71606.0,0.0014]
[1773549241178,0.1472787,71616.0,71602.0,0.0014]
[1773549241469,0.1472787,71606.0,71598.0,0.0014]
[1773549242265,0.1472787,71606.0,71597.0,0.0014]
[1773549243067,0.1891677,71606.0,71597.0,0.0014]
[1773549243566,0.041889,71606.0,71597.0,0.0014]
[1773549243874,0.041888,71608.0,71597.0,0.0014]
[1773549245276,0.041889,71607.0,71597.0,0.0014]
[1773549250882,0.04189,71606.0,71597.0,0.0014]
[1773549254178,0.08778429,71610.0,71586.0,0.0419]
[1773549254481,0.041894,71599.0,71587.0,0.0014]
[1773549254678,0.041894,71599.0,71586.0,0.0419]
[1773549254880,0.041894,71599.0,71587.0,0.0014]
[1773549255780,0.041894,71599.0,71586.0,0.0419]
[1773549255781,0.041894,71599.0,71588.0,0.0014]
[1773549256183,0.041894,71599.0,71586.0,0.0419]
[1773549256481,0.041894,71599.0,71581.0,0.16035485]
[1773549256482,0.041894,71599.0,71587.0,0.0433]
[1773549256783,0.041894,71599.0,71588.0,0.0014]
[1773549257382,0.041894,71599.0,71589.0,0.0014]
[1773549257784,0.041894,71599.0,71590.0,0.0014]
[1773549258182,0.041894,71599.0,71587.0,0.0419]
[1773549258382,0.041894,71599.0,71588.0,0.0014]
[1773549258783,0.041894,71599.0,71589.0,0.0014]
[1773549259175,0.041894,71599.0,71587.0,0.0419]
[1773549259376,0.041894,71599.0,71588.0,0.0014]
[1773549259788,0.041894,71599.0,71589.0,0.0014]
[1773549260285,0.041894,71599.0,71590.0,0.0014]
[1773549260778,0.041894,71599.0,71591.0,0.0014]
[1773549261483,0.1891727,71599.0,71590.0,0.0014]
[1773549261878,0.1891727,71599.0,71587.0,0.0419]
[1773549262079,0.041896,71594.0,71588.0,0.0014]
[1773549262275,0.041895,71596.0,71586.0,0.0014]
[1773549263088,0.157878,71595.0,71587.0,0.0014]
[1773549265577,0.041896,71594.0,71587.0,0.0014]
[1773549265782,0.199775,71593.0,71585.0,0.0014]
[1773549266087,0.041898,71591.0,71585.0,0.0014]
[1773549266291,0.199775,71593.0,71585.0,0.0014]
[1773549266791,0.199775,71593.0,71584.0,0.0014]
[1773549267190,0.199775,71593.0,71581.0,0.04260151]
[1773549267390,0.041898,71592.0,71582.0,0.0014]
[1773549267791,0.041898,71591.0,71583.0,0.0014]
[1773549267987,0.041898,71591.0,71581.0,0.00069851]
[1773549268188,0.041898,71591.0,71582.0,0.0014]
[1773549268581,0.157878,71592.0,71581.0,0.00069851]
[1773549268792,0.041899,71589.0,71581.0,0.00069851]
[1773549268989,0.041898,71591.0,71582.0,0.0014]
[1773549269586,0.041899,71590.0,71582.0,0.0014]
[1773549269791,0.041899,71589.0,71582.0,0.0014]
[1773549270088,0.157878,71592.0,71561.0,0.14382888]
[1773549270089,0.157878,71583.0,71561.0,0.14382888]
[1773549270287,0.08778429,71592.0,71564.0,0.041913]
[1773549270488,0.157878,71591.0,71564.0,0.041913]
[1773549270687,0.157878,71591.0,71565.0,0.0014]
[1773549271083,0.157878,71591.0,71564.0,0.041913]
[1773549271084,0.041907,71577.0,71564.0,0.041913]
[1773549271288,0.041907,71577.0,71566.0,0.0014]
[1773549271795,0.157878,71581.0,71551.0,0.19603796]
[1773549271796,0.157878,71581.0,71560.0,0.23301317]
[1773549272289,0.157878,71581.0,71560.0,0.14522888]
[1773549272496,0.041908,71575.0,71561.0,0.041915]
[1773549273193,0.041908,71575.0,71564.0,0.001]
[1773549273696,0.157878,71578.0,71565.0,0.0014]
[1773549273896,0.041908,71574.0,71565.0,0.0014]
[1773549276289,0.157878,71579.0,71565.0,0.0014]
[1773549276290,0.041909,71573.0,71565.0,0.0014]
[1773549276491,0.041912,71568.0,71553.0,0.04192]
[1773549276685,0.041912,71568.0,71555.0,0.041919]
[1773549278397,0.08778429,71565.0,71540.0,0.14382888]
[1773549278601,0.041917,71558.0,71545.0,0.041924]
[1773549278802,0.041917,71558.0,71546.0,0.0014]
[1773549279204,0.157878,71559.0,71547.0,0.0014]
[1773549279502,0.041919,71556.0,71548.0,0.0014]
[1773549279704,0.041919,71556.0,71549.0,0.0014]
[1773549280804,0.041919,71556.0,71550.0,0.0014]
[1773549281105,0.041919,71556.0,71551.0,0.0014]
[1773549281698,0.041917,71558.0,71551.0,0.0014]
[1773549282599,0.041917,71558.0,71543.0,0.041926]
[1773549282798,0.199795,71558.0,71544.0,0.0014]
[1773549288025,0.157878,71558.0,71544.0,0.0014]
[1773549288219,0.157878,71563.0,71544.0,0.0014]
[1773549288525,0.041911,71569.0,71556.0,0.041918]
[1773549288719,0.041911,71569.0,71557.0,0.0014]
[1773549289618,0.041914,71565.0,71557.0,0.0014]
[1773549289819,0.041916,71560.0,71536.0,0.14382888]
[1773549290021,0.041916,71560.0,71538.0,0.15817567]
[1773549290220,0.041916,71560.0,71540.0,0.0879478]
[1773549290424,0.041918,71557.0,71545.0,0.041924]
[1773549291221,0.18609,71559.0,71545.0,0.041924]
[1773549291525,0.144173,71558.0,71546.0,0.0014]
[1773549296628,0.144173,71558.0,71546.0,0.043324]
[1773549297431,0.15344123,71564.0,71549.0,0.041922]
[1773549297731,0.041915,71562.0,71549.0,0.041922]
[1773549298822,0.041916,71561.0,71549.0,0.041922]
[1773549299429,0.041911,71570.0,71550.0,0.0879478]
[1773549299628,0.0014,71573.0,71557.0,0.041918]
[1773549299823,0.041911,71569.0,71558.0,0.0014]
[1773549300624,0.041912,71568.0,71558.0,0.0014]
[1773549302228,0.15344123,71572.0,71558.0,0.0014]
[1773549302428,0.041907,71576.0,71563.0,0.041914]
[1773549302628,0.15484123,71581.0,71563.0,0.041914]
[1773549302830,0.15344123,71585.0,71570.0,0.0879478]
[1773549303025,0.26874429,71591.0,71571.0,0.0014]
[1773549303333,0.15344123,71577.0,71562.0,0.041915]
[1773549303530,0.15344123,71577.0,71563.0,0.0014]
[1773549304129,0.15344123,71577.0,71564.0,0.0014]
[1773549304326,0.19534723,71577.0,71564.0,0.0014]
[1773549304633,0.15344123,71577.0,71565.0,0.041913]
[1773549307031,0.15344123,71577.0,71560.0,0.0879478]
[1773549307231,0.0014,71583.0,71561.0,0.0014]
[1773549307232,0.15344123,71571.0,71561.0,0.0014]
[1773549307430,0.15344123,71571.0,71562.0,0.0014]
[1773549307631,0.041909,71573.0,71562.0,0.0014]
[1773549312438,0.19535023,71572.0,71562.0,0.0014]
[1773549312639,0.15344123,71572.0,71562.0,0.00011191]
[1773549314037,0.19535223,71570.0,71562.0,0.00011191]
[1773549314747,0.19535323,71568.0,71557.0,0.0014]
[1773549315245,0.15344123,71573.0,71558.0,0.1298648]
[1773549315649,0.04191,71570.0,71558.0,0.0879478]
[1773549315837,0.04191,71570.0,71557.0,0.0014]
[1773549316247,0.041911,71569.0,71557.0,0.0014]
[1773549317250,0.041911,71569.0,71559.0,0.0879478]
[1773549317841,0.041911,71569.0,71557.0,0.0014]
[1773549318037,0.041912,71568.0,71557.0,0.0014]
[1773549318250,0.15344123,71573.0,71557.0,0.0014]
[1773549318548,0.041912,71567.0,71557.0,0.0014]
[1773549320252,0.0014,71577.0,71550.0,0.0879478]
[1773549320253,0.15344123,71566.0,71550.0,0.0879478]
[1773549320449,0.19535623,71562.0,71551.0,0.0014]
[1773549320646,0.15344123,71562.0,71552.0,0.0014]
[1773549321147,0.15344123,71562.0,71553.0,0.0014]
[1773549321550,0.15344123,71562.0,71552.0,0.04192]
[1773549321749,0.15344123,71562.0,71553.0,0.0014]
[1773549322249,0.15344123,71562.0,71550.0,0.041922]
[1773549322448,0.15344123,71562.0,71551.0,0.043321]
[1773549322643,0.041912,71567.0,71552.0,0.0014]
[1773549322843,0.041912,71567.0,71553.0,0.0014]
[1773549323952,0.041912,71567.0,71553.0,0.04332]
[1773549324853,0.041913,71566.0,71553.0,0.04332]
[1773549325355,0.041913,71565.0,71553.0,0.04332]
[1773549325549,0.041913,71565.0,71553.0,0.0014]
[1773549326652,0.19496619,71565.0,71553.0,0.0014]
[1773549327846,0.15305319,71564.0,71553.0,0.0014]
[1773549328054,0.15305319,71564.0,71554.0,0.0014]
[1773549328852,0.041915,71563.0,71554.0,0.0014]
[1773549329047,0.15305319,71564.0,71554.0,0.0014]
[1773549329742,0.15305319,71564.0,71550.0,0.0879478]
[1773549329743,0.15305319,71564.0,71551.0,0.041921]
[1773549330055,0.15305319,71563.0,71551.0,0.041921]
[1773549330263,0.15305319,71563.0,71552.0,0.0014]
[1773549332652,0.15305319,71563.0,71552.0,0.04332]
[1773549336874,0.19496819,71563.0,71552.0,0.0014]
[1773549337179,0.15305319,71563.0,71552.0,0.0014]
[1773549337371,0.15305319,71563.0,71553.0,0.0014]
[1773549337981,0.041915,71562.0,71553.0,0.0014]
[1773549338179,0.15305319,71561.0,71553.0,0.0014]
[1773549338671,0.041914,71564.0,71553.0,0.0014]
[1773549339979,0.041914,71564.0,71553.0,0.04192]
[1773549340279,0.041914,71564.0,71554.0,0.0014]
[1773549340978,0.15305319,71565.0,71554.0,0.0014]
[1773549341377,0.19496619,71565.0,71554.0,0.0014]
[1773549350281,0.041914,71564.0,71554.0,0.0014]
[1773549361889,0.041915,71563.0,71554.0,0.0014]
[1773549362292,0.18297133,71563.0,71554.0,0.0014]
[1773549363294,0.14105633,71556.0,71541.0,0.16605098]
[1773549363495,0.041916,71560.0,71542.0,0.0014]
[1773549363797,0.041916,71560.0,71543.0,0.0014]
[1773549363998,0.041917,71559.0,71546.0,0.041924]
[1773549364295,0.041917,71559.0,71547.0,0.0014]
[1773549366091,0.041917,71559.0,71546.0,0.041924]
[1773549366298,0.041917,71559.0,71548.0,0.0014]
[1773549366496,0.14105633,71566.0,71550.0,0.041922]
[1773549366796,0.14105633,71566.0,71549.0,0.08792095]
[1773549367997,0.18297033,71564.0,71550.0,0.041922]
[1773549370995,0.041915,71563.0,71550.0,0.041922]
[1773549372795,0.18297133,71562.0,71549.0,0.041922]
[1773549372999,0.14105633,71561.0,71549.0,0.041922]
[1773549374897,0.18297233,71561.0,71549.0,0.041922]
[1773549375199,0.14105633,71561.0,71548.0,0.0014]
[1773549375402,0.14105633,71559.0,71548.0,0.0014]
[1773549375699,0.14105633,71559.0,71547.0,0.041923]
[1773549375888,0.14105633,71559.0,71548.0,0.0014]
[1773549376400,0.14105633,71559.0,71549.0,0.0014]
[1773549376800,0.14105633,71559.0,71550.0,0.0014]
[1773549377199,0.14105633,71559.0,71547.0,0.041923]
[1773549377500,0.14105633,71559.0,71548.0,0.0014]
[1773549377701,0.14105633,71559.0,71547.0,0.041923]
[1773549377901,0.14105633,71559.0,71548.0,0.0014]
[1773549378296,0.14105633,71559.0,71547.0,0.041923]
[1773549378495,0.18297333,71558.0,71540.0,0.08792095]
[1773549378697,0.14105633,71557.0,71546.0,0.041924]
[1773549378899,0.14105633,71557.0,71547.0,0.0014]
[1773549387313,0.18297433,71557.0,71547.0,0.0014]
[1773549387711,0.13953442,71556.0,71547.0,0.0014]
[1773549390200,0.18145342,71556.0,71548.0,0.0014]
[1773549390405,0.13953442,71555.0,71548.0,0.0014]
[1773549391105,0.13953442,71555.0,71544.0,0.041925]
[1773549391307,0.13953442,71553.0,71534.0,0.16605098]
[1773549391509,0.13953442,71553.0,71535.0,0.0014]
[1773549392716,0.18145642,71551.0,71539.0,0.041928]
[1773549393513,0.13953442,71551.0,71539.0,0.041928]
[1773549393819,0.13953442,71551.0,71540.0,0.08792095]
[1773549394019,0.13953442,71551.0,71541.0,0.0014]
[1773549399322,0.13953442,71551.0,71537.0,0.041929]
[1773549399516,0.041922,71551.0,71538.0,0.043328]
[1773549399715,0.13953442,71550.0,71538.0,0.043328]
[1773549399915,0.13953442,71550.0,71538.0,0.041928]
[1773549400218,0.13953442,71550.0,71539.0,0.0014]
[1773549404125,0.13953442,71550.0,71540.0,0.08792095]
[1773549404913,0.041922,71549.0,71540.0,0.08792095]
[1773549405117,0.13953442,71548.0,71540.0,0.08792095]
[1773549405625,0.13953442,71548.0,71539.0,0.0014]
[1773549406424,0.041913,71565.0,71530.0,0.08795704]
[1773549406622,0.0014,71564.0,71540.0,0.041928]
[1773549406926,0.041921,71553.0,71539.0,0.0014]
[1773549407125,0.22064121,71552.0,71539.0,0.00979313]
[1773549407322,0.22064121,71551.0,71540.0,0.041928]
[1773549407517,0.22064121,71550.0,71540.0,0.041928]
[1773549407714,0.04192,71554.0,71540.0,0.041928]
[1773549407715,0.22064121,71549.0,71540.0,0.041928]
[1773549407918,0.22064121,71548.0,71540.0,0.041928]
[1773549408131,0.22064121,71547.0,71540.0,0.041928]
[1773549408329,0.22078427,71546.0,71539.0,0.0014]
[1773549408516,0.22081232,71545.0,71540.0,0.00839313]
[1773549408723,0.22075654,71544.0,71540.0,0.00839313]
[1773549409021,0.22064121,71543.0,71540.0,0.00839313]
[1773549409227,3.9e-07,71542.0,71540.0,0.00839313]
[1773549409427,0.041921,71553.0,71540.0,0.00839313]
[1773549411125,0.08795704,71590.0,71543.0,0.08795704]
[1773549411428,0.03239729,71573.0,71550.0,0.08795704]
[1773549411623,0.041913,71566.0,71553.0,0.04192]
[1773549411818,0.041913,71566.0,71551.0,0.15580115]
[1773549412026,0.041913,71566.0,71551.0,0.20611528]
[1773549412222,0.0014,71572.0,71552.0,0.15443246]
[1773549412433,0.14008052,71585.0,71551.0,0.00979313]
[1773549412434,0.14012957,71582.0,71564.0,0.041914]
[1773549412624,0.041906,71577.0,71565.0,0.0014]
[1773549412824,0.041906,71577.0,71567.0,0.08795704]
[1773549413025,0.041906,71577.0,71565.0,0.0014]
[1773549413228,0.001,71573.0,71565.0,0.0014]
[1773549413627,0.001,71573.0,71566.0,0.00839313]
[1773549413827,0.041906,71577.0,71566.0,0.00839313]